bitfinex-derivatives/quotes_SOLF0:USTF0_20250106
["timestamp","ask_amount","ask_price","bid_price","bid_amount"]
[1736153728505,2.3331,214.38,214.34,9.68585144]
[1736153728895,2.6,214.4,214.34,7.35245144]
[1736153729406,7.35245144,214.42,214.34,7.35245144]
[1736153729601,2.6,214.39,214.34,7.35245144]
[1736153729802,2.3331,214.38,214.34,9.68595144]
[1736153729999,4.9331,214.38,214.34,9.68595144]
[1736153732001,4.9331,214.38,214.34,7.35245144]
[1736153732198,4.9331,214.38,214.36,7.35245144]
[1736153735404,2.58,214.39,214.38,7.35245144]
[1736153736908,2.3331,214.38,214.34,2.3335]
[1736153737109,2.3331,214.38,214.34,9.68595144]
[1736153739209,4.913,214.39,214.36,7.35245144]
[1736153745213,4.913,214.39,214.35,2.3333]
[1736153745511,4.913,214.39,214.35,9.68575144]
[1736153754526,2.3331,214.38,214.35,9.68575144]
[1736153757525,2.58,214.39,214.3,4.2952]
[1736153757728,7.35245144,214.38,214.3,11.64765144]
[1736153757922,7.35245144,214.36,214.3,4.2952]
[1736153758127,2.3335,214.35,214.3,4.2952]
[1736153758328,2.58,214.34,214.32,7.35245144]
[1736153758526,2.58,214.33,214.32,7.35245144]
[1736153759222,2.58,214.33,214.21,6.48954978]
[1736153759524,2.58,214.33,214.29,7.35245144]
[1736153759729,2.58,214.33,214.31,7.35245144]
[1736153760428,2.3333,214.37,214.31,7.35245144]
[1736153760731,2.58,214.36,214.34,7.35245144]
[1736153762127,2.58,214.38,214.34,7.35245144]
[1736153762333,2.58,214.42,214.37,7.35245144]
[1736153762528,2.58,214.42,214.4,7.35245144]
[1736153763435,2.58,214.43,214.4,7.35245144]
[1736153764436,2.58,214.43,214.42,7.35245144]
[1736153766232,2.3321,214.47,214.42,9.68495144]
[1736153766433,2.58,214.46,214.44,7.35245144]
[1736153767026,2.58,214.48,214.44,7.35245144]
[1736153767231,2.58,214.48,214.47,7.35245144]
[1736153767431,2.58,214.5,214.47,7.35245144]
[1736153770037,2.58,214.5,214.36,2.58]
[1736153770238,4.9118,214.5,214.46,7.35245144]
[1736153773337,2.3318,214.5,214.46,7.35245144]
[1736153773537,4.9118,214.5,214.48,7.35245144]
[1736153775939,2.332,214.48,214.4,2.3328]
[1736153776140,2.58,214.5,214.45,7.35245144]
[1736153776540,4.9119,214.5,214.45,9.68465144]
[1736153776938,2.58,214.49,214.45,9.68465144]
[1736153778038,2.3322,214.47,214.43,2.3325]
[1736153778243,2.58,214.49,214.43,7.35245144]
[1736153779033,2.3321,214.48,214.43,7.35245144]
[1736153779340,2.58,214.49,214.43,7.35245144]
[1736153779735,2.3322,214.47,214.43,9.68495144]
[1736153780945,2.3322,214.46,214.43,7.35245144]
[1736153789246,7.35245144,214.48,214.41,7.35245144]
[1736153789647,7.35245144,214.46,214.39,9.68535144]
[1736153790047,2.3327,214.42,214.39,7.35245144]
[1736153790244,2.58,214.42,214.39,7.35245144]
[1736153790447,2.58,214.42,214.41,7.35245144]
[1736153791348,2.58,214.42,214.41,9.68515144]
[1736153792347,2.3323,214.45,214.42,2.3326]
[1736153792548,4.9123,214.45,214.43,7.35245144]
[1736153794052,4.9123,214.45,214.41,2.3327]
[1736153794254,4.9123,214.45,214.42,7.35245144]
[1736153794448,2.3324,214.44,214.42,7.35245144]
[1736153795948,2.3325,214.43,214.4,7.35245144]
[1736153796748,2.58,214.45,214.31,59.29231334]
[1736153796951,7.35245144,214.43,214.36,7.35245144]
[1736153797850,2.333,214.4,214.35,2.3334]
[1736153798051,2.58,214.39,214.36,7.35245144]
[1736153798453,2.58,214.39,214.35,9.68585144]
[1736153799454,4.913,214.39,214.35,9.68585144]
[1736153800155,2.3333,214.37,214.35,7.35245144]
[1736153801458,2.3331,214.38,214.35,7.35245144]
[1736153801655,2.3331,214.38,214.37,7.35245144]
[1736153803158,2.58,214.39,214.37,7.35245144]
[1736153803362,4.913,214.39,214.37,7.35245144]
[1736153804360,4.913,214.39,214.35,7.35245144]
[1736153804959,2.3331,214.38,214.35,7.35245144]
[1736153805960,2.3333,214.36,214.32,2.3336]
[1736153806162,2.3333,214.36,214.34,7.35245144]
[1736153808163,2.3331,214.38,214.34,9.68585144]
[1736153808362,2.3331,214.38,214.36,7.35245144]
[1736153811964,2.58,214.39,214.34,7.35245144]
[1736153813162,2.3331,214.38,214.34,7.35245144]
[1736153813465,2.58,214.39,214.34,7.35245144]
[1736153814166,2.3333,214.37,214.34,7.35245144]
[1736153814362,9.93245144,214.39,214.31,4.513]
[1736153814561,2.3336,214.33,214.32,7.35245144]
[1736153816965,2.3339,214.31,214.27,2.3343]
[1736153817164,2.3339,214.31,214.28,7.35245144]
[1736153817568,2.3339,214.31,214.3,7.35245144]
[1736153819871,2.3339,214.31,214.28,9.68665144]
[1736153820166,2.3341,214.29,214.24,4.3664]
[1736153820367,4.9141,214.29,214.27,7.35245144]
[1736153820669,4.9141,214.29,214.26,7.35245144]
[1736153823166,2.58,214.29,214.12,4.6717]
[1736153823369,2.3343,214.28,214.25,7.35245144]
[1736153823566,2.58,214.29,214.25,7.35245144]
[1736153824270,2.3342,214.28,214.25,7.35245144]
[1736153826270,2.58,214.29,214.18,1.415]
[1736153826468,7.35245144,214.27,214.2,7.35245144]
[1736153827968,2.3347,214.24,214.2,7.35245144]
[1736153828174,2.58,214.23,214.2,7.35245144]
[1736153829168,4.9147,214.23,214.2,7.35245144]
[1736153830767,2.3344,214.26,214.22,7.35245144]
[1736153830971,2.58,214.25,214.24,7.35245144]
[1736153832175,2.58,214.25,214.22,7.35245144]
[1736153833273,2.58,214.25,214.22,9.68725144]
[1736153833575,2.58,214.25,214.18,1.415]
[1736153833776,2.3346,214.24,214.21,7.35245144]
[1736153835378,2.58,214.25,214.21,7.35245144]
[1736153835573,2.3347,214.23,214.21,7.35245144]
[1736153836778,2.3348,214.22,214.19,2.3351]
[1736153836980,2.3348,214.22,214.2,7.35245144]
[1736153840078,2.3348,214.22,214.18,7.35245144]
[1736153840381,2.58,214.25,214.18,7.35245144]
[1736153841381,2.3351,214.19,214.18,7.35245144]
[1736153841971,2.58,214.2,214.14,1.4103]
[1736153842176,2.3353,214.18,214.16,7.35245144]
[1736153842877,2.3354,214.17,214.14,3.7459]
[1736153843078,2.3354,214.17,214.15,7.35245144]
[1736153843677,2.3354,214.17,214.15,9.68805144]
[1736153843877,2.58,214.2,214.15,9.68805144]
[1736153844081,2.3353,214.18,214.15,9.68805144]
[1736153847884,4.9153,214.18,214.15,9.68805144]
[1736153855788,2.58,214.18,214.16,2.3354]
[1736153856491,4.9352,214.19,214.16,2.3354]
[1736153857989,2.3353,214.18,214.16,2.3354]
[1736153859390,4.6677,214.32,214.17,7.35245144]
[1736153859585,4.6677,214.32,214.19,7.35245144]
[1736153859586,7.35245144,214.26,214.19,7.35245144]
[1736153859791,2.6,214.25,214.19,7.35245144]
[1736153860096,2.3347,214.23,214.2,2.335]
[1736153860489,4.9347,214.23,214.2,2.335]
[1736153860689,2.6,214.23,214.2,2.335]
[1736153861793,4.9347,214.23,214.2,2.335]
[1736153862389,4.9347,214.23,214.19,9.68755144]
[1736153863288,4.9347,214.23,214.19,2.3351]
[1736153864194,9.95245144,214.23,214.14,1.4103]
[1736153864398,9.95245144,214.23,214.16,7.35245144]
[1736153865398,2.3352,214.19,214.16,7.35245144]
[1736153871007,2.335,214.2,214.16,9.68785144]
[1736153873609,2.6,214.2,214.18,7.35245144]
[1736153873810,2.6,214.2,214.18,9.68765144]
[1736153874310,7.35245144,214.25,214.18,7.35245144]
[1736153874505,2.6,214.24,214.21,2.3349]
[1736153874810,2.6,214.24,214.2,7.35245144]
[1736153876210,2.3348,214.23,214.2,7.35245144]
[1736153876413,2.3348,214.23,214.14,1.4103]
[1736153876414,7.35245144,214.21,214.1,6.48954978]
[1736153876611,2.6,214.24,214.1,6.48954978]
[1736153877011,7.35245144,214.18,214.09,35.64685057]
[1736153877216,2.6,214.17,214.09,35.64685057]
[1736153877414,9.95245144,214.17,214.09,35.64685057]
[1736153877916,9.95245144,214.17,214.09,9.68865144]
[1736153878508,2.3357,214.14,214.09,9.68865144]
[1736153880408,2.3357,214.14,214.1,7.35245144]
[1736153881410,9.95245144,214.17,214.09,2.3362]
[1736153881609,7.35245144,214.14,214.07,4.3616]
[1736153883012,7.35245144,214.14,213.99,2.6]
[1736153883211,7.35245144,214.14,214.07,7.35245144]
[1736153884422,2.3361,214.11,214.07,7.35245144]
[1736153884621,2.66,214.1,214.03,2.3369]
[1736153884923,2.66,214.1,214.04,7.35245144]
[1736153886320,2.3362,214.09,214.04,7.35245144]
[1736153886521,3.50451819,214.2,214.06,7.35245144]
[1736153886723,7.35245144,214.16,214.08,7.35245144]
[1736153886920,2.3358,214.13,214.08,7.35245144]
[1736153887122,2.66,214.12,214.08,9.68875144]
[1736153887818,2.3357,214.14,214.1,7.35245144]
[1736153888124,2.66,214.13,214.1,7.35245144]
[1736153889825,4.9958,214.13,214.1,7.35245144]
[1736153890622,2.66,214.15,214.12,7.35245144]
[1736153890821,7.35245144,214.19,214.12,7.35245144]
[1736153890822,2.66,214.16,214.12,7.35245144]
[1736153891523,2.66,214.16,214.12,9.68835144]
[1736153892616,7.35245144,214.19,214.12,9.68835144]
[1736153892821,2.66,214.16,214.12,9.68835144]
[1736153893126,2.66,214.16,214.14,9.68815144]
[1736153893323,2.66,214.19,214.14,7.35245144]
[1736153893624,2.66,214.19,214.16,7.35245144]
[1736153894218,4.9952,214.19,214.16,7.35245144]
[1736153895828,4.9952,214.19,214.14,9.68805144]
[1736153896430,2.66,214.19,214.14,7.35245144]
[1736153896621,2.3355,214.16,214.14,7.35245144]
[1736153899328,2.3355,214.16,214.11,2.3359]
[1736153899530,2.66,214.19,214.12,7.35245144]
[1736153900430,2.3357,214.15,214.12,7.35245144]
[1736153900631,2.3357,214.15,214.12,9.68835144]
[1736153902121,2.3354,214.17,214.12,7.35245144]
[1736153902331,2.3354,214.17,214.14,7.35245144]
[1736153903028,7.35245144,214.21,214.14,7.35245144]
[1736153903232,2.66,214.21,214.19,2.3351]
[1736153903429,2.66,214.21,214.16,7.35245144]
[1736153903827,2.66,214.21,214.18,2.3352]
[1736153904232,4.9948,214.22,214.18,2.3352]
[1736153906030,2.335,214.21,214.16,2.3354]
[1736153906927,10.01245144,214.22,214.08,2.9128]
[1736153907224,2.3353,214.18,214.12,7.35245144]
[1736153907733,2.3353,214.18,214.14,2.3357]
[1736153908524,7.35245144,214.2,214.14,2.3357]
[1736153908837,2.3354,214.17,214.14,2.3357]
[1736153909535,2.3355,214.16,214.13,2.3358]
[1736153910430,2.66,214.17,214.08,2.9128]
[1736153910635,2.3357,214.15,214.11,2.3359]
[1736153910838,2.3357,214.15,214.08,2.9128]
[1736153911137,2.3357,214.15,214.1,7.35245144]
[1736153911339,2.3357,214.15,214.12,2.3358]
[1736153913538,2.66,214.17,214.1,7.35245144]
[1736153915334,2.3357,214.14,214.11,2.336]
[1736153923438,7.35245144,214.16,214.08,2.9128]
[1736153923647,7.35245144,214.16,214.09,7.35245144]
[1736153924146,2.3357,214.14,214.09,9.68865144]
[1736153924342,7.35245144,214.16,214.09,9.68865144]
[1736153924844,2.3359,214.13,214.09,9.68865144]
[1736153925741,7.35245144,214.14,214.08,2.9128]
[1736153925936,2.336,214.11,214.08,5.2491]
[1736153928346,2.336,214.11,214.08,2.9128]
[1736153928557,2.336,214.11,214.09,2.3362]
[1736153928746,2.336,214.11,214.07,8.77835144]
[1736153929148,9.97245144,214.12,214.02,2.9233]
[1736153929453,2.3365,214.07,214.04,7.35245144]
[1736153930542,2.3365,214.07,214.05,2.3367]
[1736153930946,2.3364,214.08,214.05,2.3367]
[1736153931143,2.62,214.07,214.01,7.35245144]
[1736153931547,2.62,214.07,213.95,4.3364]
[1736153931746,2.62,214.07,214.01,2.337]
[1736153931944,2.62,214.07,214.01,7.35245144]
[1736153933448,2.3367,214.05,214.02,2.337]
[1736153936750,2.3366,214.06,214.02,2.337]
[1736153937652,2.3364,214.08,214.04,2.3367]
[1736153937851,2.64,214.07,214.02,7.35245144]
[1736153939456,2.64,214.07,214.05,2.3366]
[1736153945860,2.64,214.07,214.02,7.35245144]
[1736153946061,2.64,214.07,214.04,2.3368]
[1736153952362,4.9765,214.07,214.04,2.3368]
[1736153952568,2.62,214.12,214.05,7.35245144]
[1736153952770,2.62,214.12,214.08,7.35245144]
[1736153953064,2.62,214.12,214.08,9.68875144]
[1736153953065,4.956,214.12,214.08,9.68875144]
[1736153953259,2.62,214.12,214.08,7.35245144]
[1736153953462,2.62,214.12,214.05,2.9505]
[1736153953659,4.9559,214.12,214.09,2.3362]
[1736153954064,2.3359,214.12,214.07,7.35245144]
[1736153954463,9.97245144,214.14,214.09,2.3362]
[1736153954769,2.3358,214.13,214.09,2.3362]
[1736153956068,4.9557,214.14,214.1,2.3361]
[1736153956262,2.62,214.14,214.08,7.35245144]
[1736153957459,2.336,214.12,214.08,9.68875144]
[1736153957658,2.336,214.12,214.08,2.3363]
[1736153960272,7.35245144,214.12,213.97,4.6749]
[1736153960568,7.35245144,214.12,214.03,7.35245144]
[1736153960765,7.35245144,214.12,214.05,7.35245144]
[1736153960963,2.3363,214.09,214.06,2.3365]
[1736153963373,2.3363,214.09,214.05,7.35245144]
[1736153963573,3.50537255,214.21,214.07,7.35245144]
[1736153963772,7.35245144,214.15,214.07,7.35245144]
[1736153963968,2.62,214.14,214.09,2.3362]
[1736153964173,7.35245144,214.16,214.09,7.35245144]
[1736153964373,2.62,214.15,214.09,7.35245144]
[1736153964574,4.9557,214.15,214.11,2.3359]
[1736153964773,2.62,214.15,214.09,7.35245144]
[1736153965174,4.9556,214.15,214.11,2.3359]
[1736153967372,2.3359,214.13,214.09,2.3362]
[1736153967573,7.35245144,214.14,214.03,2.62]
[1736153967776,7.35245144,214.14,214.06,7.35245144]
[1736153968077,2.336,214.12,214.08,9.68875144]
[1736153968273,7.35245144,214.14,214.08,9.68875144]
[1736153968476,7.35245144,214.14,214.08,2.3363]
[1736153968679,2.3361,214.11,214.06,7.35245144]
[1736153968879,7.35245144,214.14,214.07,2.3364]
[1736153969079,7.35245144,214.12,214.07,2.3364]
[1736153969380,2.62,214.15,214.01,2.62]
[1736153969381,2.3364,214.08,214.01,2.62]
[1736153969577,9.97245144,214.1,214.03,7.35245144]
[1736153969777,9.97245144,214.1,214.01,7.35245144]
[1736153970180,2.3364,214.08,214.03,2.3369]
[1736153970482,9.97245144,214.1,214.03,2.3369]
[1736153970685,2.3366,214.07,214.03,2.3369]
[1736153971681,2.3366,214.07,214.03,7.35245144]
[1736153971885,2.62,214.1,214.05,7.35245144]
[1736153973189,2.62,214.1,214.07,2.3364]
[1736153973484,2.62,214.1,214.05,7.35245144]
[1736153973786,2.62,214.1,214.08,2.3362]
[1736153975986,2.62,214.1,214.07,9.68885144]
[1736153980684,2.62,214.1,214.09,2.3362]
[1736153981890,2.62,214.1,214.06,7.35245144]
[1736153982390,4.9562,214.1,214.07,2.3364]
[1736153991803,4.9562,214.1,214.08,2.3363]
[1736153998307,2.62,214.12,214.1,2.3361]
[1736153998500,2.62,214.14,214.1,2.3361]
[1736153998906,7.35245144,214.16,214.08,7.35245144]
[1736153999105,2.62,214.15,214.1,2.3361]
[1736154000311,2.62,214.15,214.07,7.35245144]
[1736154001413,2.3359,214.12,214.09,2.3362]
[1736154003505,3.50516538,214.2,214.11,7.35245144]
[1736154003715,2.62,214.2,214.13,7.35245144]
[1736154003921,3.50516538,214.23,214.17,7.35245144]
[1736154004215,2.62,214.22,214.17,7.35245144]
[1736154006311,2.62,214.22,214.19,2.3351]
[1736154007422,4.9548,214.22,214.18,2.3352]
[1736154011220,4.9548,214.22,214.19,7.35245144]
[1736154011721,2.62,214.22,214.19,7.35245144]
[1736154012222,2.3345,214.25,214.21,7.35245144]
[1736154012524,2.3345,214.25,214.1,2.62]
[1736154012525,7.35245144,214.25,214.17,7.35245144]
[1736154012727,2.62,214.26,214.19,7.35245144]
[1736154012926,2.3346,214.24,214.21,2.3349]
[1736154013622,2.3345,214.25,214.21,2.3349]
[1736154014626,2.3345,214.25,214.21,9.68735144]
[1736154015326,4.9544,214.26,214.22,2.3348]
[1736154015526,2.62,214.26,214.22,2.3348]
[1736154016118,2.62,214.26,214.19,7.35245144]
[1736154016320,2.3345,214.25,214.21,2.3349]
[1736154016827,7.35245144,214.25,214.19,9.68745144]
[1736154017323,2.3348,214.23,214.19,2.335]
[1736154018329,7.35245144,214.25,214.17,7.35245144]
[1736154018633,7.35245144,214.25,214.18,2.3352]
[1736154019026,2.3349,214.21,214.18,2.3352]
[1736154019432,2.3349,214.21,214.19,2.3351]
[1736154019732,2.62,214.26,214.19,2.3351]
[1736154019733,2.3348,214.23,214.19,7.35245144]
[1736154020630,2.3346,214.24,214.19,7.35245144]
[1736154021233,2.3344,214.26,214.21,7.35245144]
[1736154021434,4.9544,214.26,214.21,7.35245144]
[1736154022436,4.9544,214.26,214.23,2.3346]
[1736154023140,2.3344,214.26,214.23,2.3346]
[1736154023937,9.97245144,214.27,214.21,7.35245144]
[1736154024138,2.3345,214.25,214.22,2.3348]
[1736154024339,2.62,214.27,214.21,7.35245144]
[1736154024639,4.9544,214.27,214.23,2.3346]
[1736154025338,2.62,214.27,214.23,2.3346]
[1736154025537,2.3344,214.26,214.23,2.3346]
[1736154026835,2.3344,214.26,214.21,7.35245144]
[1736154027038,2.3344,214.26,214.23,7.35245144]
[1736154030238,4.9543,214.27,214.24,2.3346]
[1736154030546,0.93318402,214.32,214.25,7.35245144]
[1736154030738,3.55318402,214.32,214.28,7.35245144]
[1736154031043,5.88698402,214.32,214.28,9.68665144]
[1736154031238,3.55318402,214.32,214.28,7.35245144]
[1736154031544,0.93318402,214.32,214.28,7.35245144]
[1736154032447,2.3339,214.31,214.28,7.35245144]
[1736154034246,2.3344,214.26,214.21,2.3348]
[1736154034548,7.35245144,214.3,214.23,7.35245144]
[1736154034939,8.28563546,214.32,214.25,7.35245144]
[1736154035136,0.93318402,214.32,214.27,7.35245144]
[1736154035945,2.334,214.3,214.27,7.35245144]
[1736154037241,0.93318402,214.32,214.29,9.68645144]
[1736154037442,0.93318402,214.32,214.31,7.35245144]
[1736154037843,2.64,214.36,214.31,7.35245144]
[1736154038646,2.3334,214.35,214.31,9.68625144]
[1736154039246,2.64,214.36,214.31,7.35245144]
[1736154039448,2.3335,214.34,214.31,7.35245144]
[1736154043557,2.8938,214.43,214.31,7.35245144]
[1736154043851,2.3335,214.35,214.31,9.68625144]
[1736154044252,2.3335,214.34,214.31,9.68625144]
[1736154046759,2.3335,214.34,214.31,7.35245144]
[1736154048467,2.3335,214.34,214.3,2.3339]
[1736154048660,2.3335,214.34,214.31,7.35245144]
[1736154049269,2.3335,214.34,214.31,9.68625144]
[1736154051870,7.35245144,214.35,214.24,2.64]
[1736154052165,7.35245144,214.35,214.27,7.35245144]
[1736154052360,2.334,214.3,214.27,7.35245144]
[1736154052763,2.3339,214.31,214.27,9.68665144]
[1736154053469,2.334,214.3,214.27,9.68665144]
[1736154053868,2.334,214.3,214.27,2.3342]
[1736154054167,2.334,214.3,214.27,9.68665144]
[1736154056066,2.3338,214.32,214.29,7.35245144]
[1736154056667,7.35245144,214.31,214.25,2.3345]
[1736154057568,2.3342,214.28,214.25,2.3345]
[1736154058167,2.3342,214.28,214.25,9.68695144]
[1736154058970,2.3341,214.29,214.25,7.35245144]
[1736154059166,2.3341,214.29,214.26,2.3344]
[1736154059567,2.334,214.3,214.27,9.68665144]
[1736154060263,2.334,214.3,214.27,2.3342]
[1736154060773,2.3339,214.31,214.28,2.3341]
[1736154061074,2.3339,214.31,214.28,9.68655144]
[1736154061469,4.9737,214.32,214.28,9.68655144]
[1736154061671,127.1046907,214.45,214.3,7.35245144]
[1736154061877,7.35245144,214.39,214.32,7.35245144]
[1736154062070,2.3333,214.37,214.32,7.35245144]
[1736154062271,4.9733,214.37,214.32,9.68605144]
[1736154062572,2.3333,214.37,214.32,7.35245144]
[1736154063073,2.3333,214.37,214.33,2.3335]
[1736154063269,2.3333,214.37,214.33,9.68595144]
[1736154065076,2.3333,214.36,214.33,7.35245144]
[1736154066068,7.35245144,214.37,214.24,2.64]
[1736154066276,2.3336,214.34,214.3,7.35245144]
[1736154066576,2.3336,214.34,214.24,2.64]
[1736154066577,9.99245144,214.35,214.27,7.35245144]
[1736154066872,2.64,214.34,214.27,9.68665144]
[1736154067078,7.35245144,214.31,214.23,7.35245144]
[1736154067278,7.35245144,214.31,214.23,9.68705144]
[1736154067774,2.3341,214.29,214.23,9.68705144]
[1736154067976,7.35245144,214.31,214.23,9.68705144]
[1736154068776,7.35245144,214.27,214.2,1.5032]
[1736154068979,2.64,214.26,214.2,1.5032]
[1736154069276,2.64,214.26,214.19,10.24625144]
[1736154069981,2.3348,214.22,214.19,10.24625144]
[1736154070179,2.3348,214.22,214.19,7.35245144]
[1736154070574,2.64,214.26,214.19,7.35245144]
[1736154071378,2.64,214.26,214.21,7.35245144]
[1736154071975,2.64,214.26,214.14,4.2674]
[1736154072181,7.35245144,214.25,214.18,7.35245144]
[1736154072678,2.3349,214.22,214.18,7.35245144]
[1736154073475,7.35245144,214.23,214.14,4.2674]
[1736154073773,7.35245144,214.23,214.16,7.35245144]
[1736154074280,2.3349,214.21,214.16,9.68785144]
[1736154075079,7.35245144,214.23,214.16,9.68785144]
[1736154075279,2.3351,214.2,214.16,9.68785144]
[1736154076776,2.64,214.26,214.16,2.3354]
[1736154076977,7.35245144,214.23,214.16,9.68785144]
[1736154078280,2.3351,214.2,214.16,7.35245144]
[1736154078980,2.3351,214.19,214.16,7.35245144]
[1736154079180,2.64,214.21,214.16,7.35245144]
[1736154079583,2.3353,214.18,214.16,7.35245144]
[1736154081382,2.64,214.21,214.16,7.35245144]
[1736154082377,2.335,214.2,214.16,7.35245144]
[1736154082978,4.9749,214.21,214.18,7.35245144]
[1736154083282,2.64,214.21,214.2,7.35245144]
[1736154083485,2.64,214.24,214.2,9.68745144]
[1736154084284,4.9747,214.24,214.2,9.68745144]
[1736154087384,2.3347,214.23,214.2,9.68745144]
[1736154089977,4.9745,214.26,214.22,7.35245144]
[1736154090582,2.3345,214.25,214.22,7.35245144]
[1736154093086,2.3345,214.25,214.21,2.3349]
[1736154094089,2.3345,214.25,214.22,7.35245144]
[1736154094787,7.35245144,214.29,214.22,9.68725144]
[1736154094985,2.9664,214.33,214.24,7.35245144]
[1736154095178,9.99245144,214.32,214.26,7.35245144]
[1736154095378,2.64,214.31,214.26,7.35245144]
[1736154096186,2.3338,214.32,214.26,9.68675144]
[1736154096386,2.64,214.3,214.26,7.35245144]
[1736154096582,3.5030451,214.4,214.28,7.35245144]
[1736154096789,7.35245144,214.37,214.3,7.35245144]
[1736154097892,2.62,214.36,214.3,7.35245144]
[1736154098085,7.35245144,214.35,214.28,9.68655144]
[1736154098281,2.3338,214.32,214.28,9.68655144]
[1736154104592,7.35245144,214.35,214.28,9.68655144]
[1736154104798,2.3338,214.31,214.28,9.68655144]
[1736154104995,2.62,214.33,214.28,9.68655144]
[1736154105800,2.3338,214.32,214.28,9.68655144]
[1736154112103,2.3338,214.32,214.29,2.3341]
[1736154112603,2.3338,214.32,214.28,7.35245144]
[1736154113393,2.3338,214.32,214.28,9.68655144]
[1736154115408,4.9537,214.33,214.29,2.334]
[1736154115698,2.62,214.33,214.3,7.35245144]
[1736154116804,2.62,214.33,214.3,9.68635144]
[1736154120098,4.9536,214.33,214.3,9.68635144]
[1736154121798,2.3336,214.33,214.3,9.68635144]
[1736154122001,2.62,214.34,214.32,7.35245144]
[1736154122302,2.62,214.37,214.32,7.35245144]
[1736154122598,2.62,214.37,214.34,7.35245144]
[1736154123400,4.9533,214.37,214.34,7.35245144]
[1736154124113,3.0416,214.44,214.34,7.35245144]
[1736154124114,4.9531,214.38,214.34,9.68595144]
[1736154124412,2.3331,214.38,214.34,9.68595144]
[1736154125610,2.3333,214.36,214.32,7.35245144]
[1736154126706,2.3336,214.34,214.28,2.3341]
[1736154127014,2.3336,214.34,214.31,7.35245144]
[1736154129007,9.97245144,214.39,214.31,7.35245144]
[1736154129210,2.3337,214.33,214.31,7.35245144]
[1736154135011,2.3341,214.29,214.24,4.49]
[1736154135321,7.35245144,214.31,214.24,11.84245144]
[1736154135522,2.6,214.3,214.24,11.84245144]
[1736154136117,2.3343,214.27,214.24,6.8246]
[1736154136323,2.3343,214.27,214.24,11.84245144]
[1736154136815,2.6,214.3,214.24,11.84245144]
[1736154137022,2.6,214.3,214.26,7.35245144]
[1736154138220,2.6,214.3,214.27,2.3343]
[1736154144417,2.6,214.3,214.28,7.35245144]
[1736154144622,2.6,214.3,214.29,2.3341]
[1736154145124,2.6,214.3,214.28,9.68655144]
[1736154146521,2.6,214.3,214.28,7.35245144]
[1736154151922,2.3339,214.31,214.28,7.35245144]
[1736154152831,3.50232701,214.4,214.3,7.35245144]
[1736154153126,2.6,214.39,214.33,7.35245144]
[1736154154121,2.3333,214.36,214.33,7.35245144]
[1736154155827,2.3334,214.35,214.33,7.35245144]
[1736154158017,2.6,214.39,214.33,7.35245144]
[1736154159227,2.3333,214.37,214.33,7.35245144]
[1736154159429,4.9333,214.37,214.33,9.68605144]
[1736154159619,2.3333,214.37,214.33,9.68605144]
[1736154159823,4.9331,214.38,214.35,7.35245144]
[1736154160024,2.3331,214.38,214.35,7.35245144]
[1736154162928,2.3329,214.4,214.37,7.35245144]
[1736154163130,2.3329,214.4,214.26,2.6]
[1736154163131,2.6,214.41,214.39,7.35245144]
[1736154164225,4.9325,214.43,214.39,7.35245144]
[1736154167529,2.6,214.43,214.39,7.35245144]
[1736154167729,2.3326,214.42,214.39,7.35245144]
[1736154169532,9.95245144,214.43,214.33,4.4062]
[1736154169735,9.95245144,214.43,214.35,7.35245144]
[1736154170131,2.3328,214.41,214.35,7.35245144]
[1736154170332,9.95245144,214.43,214.35,7.35245144]
[1736154171531,2.3332,214.38,214.35,7.35245144]
[1736154172333,2.3335,214.35,214.31,2.3338]
[1736154172534,7.35245144,214.36,214.29,7.35245144]
[1736154172930,2.3337,214.33,214.29,7.35245144]
[1736154173138,4.9337,214.33,214.29,7.35245144]
[1736154173541,2.3338,214.32,214.29,7.35245144]
[1736154176540,2.3338,214.32,214.29,9.68645144]
[1736154177238,2.6,214.33,214.31,9.68615144]